bitfinex-derivatives/quotes_SOLF0:USTF0_20250514
["timestamp","ask_amount","ask_price","bid_price","bid_amount"]
[1747183744567,5.4863,182.25,182.2,5.4874]
[1747183744773,5.4863,182.25,182.17,1.7272]
[1747183745272,62.12,182.28,182.17,1.7272]
[1747183745571,61.96,182.29,182.17,1.7272]
[1747183745765,61.96,182.29,182.23,5.4865]
[1747183745968,61.96,182.29,182.21,124.4]
[1747183746170,5.485,182.29,182.21,124.4]
[1747183746363,61.96,182.33,182.21,124.4]
[1747183746874,5.4847,182.3,182.25,5.486]
[1747183747376,62.4,182.35,182.21,347.4]
[1747183747568,62.4,182.35,182.22,124.32]
[1747183747769,62.4,182.35,182.22,347.32]
[1747183747970,5.47141602,182.44,182.23,5.47141602]
[1747183748173,125.2924173,182.43,182.27,5.47141602]
[1747183748366,0.9524173,182.42,182.31,5.4843]
[1747183749376,5.483,182.36,182.31,5.4843]
[1747183750177,5.4825,182.37,182.28,129.7074]
[1747183750577,62.26,182.4,182.33,5.4836]
[1747183750780,5.4828,182.37,182.28,129.7074]
[1747183751477,5.4829,182.36,182.32,5.4839]
[1747183751671,61.94,182.38,182.28,129.7074]
[1747183751872,61.94,182.38,182.28,5.3674]
[1747183752068,61.94,182.38,182.28,10.8525]
[1747183752069,5.484,182.33,182.28,10.8525]
[1747183752268,62.18,182.36,182.28,10.8525]
[1747183752477,62.18,182.36,182.28,5.3674]
[1747183752979,5.47141602,182.44,182.28,5.3674]
[1747183753177,124.04,182.43,182.28,5.3674]
[1747183753377,124.99349882,182.43,182.28,5.3674]
[1747183753679,61.94,182.43,182.28,5.3674]
[1747183753883,62.28,182.42,182.28,5.3674]
[1747183754577,61.92,182.44,182.29,5.47141602]
[1747183754886,61.92,182.44,182.3,124.16]
[1747183755685,124.08,182.44,182.3,124.16]
[1747183756085,124.08,182.44,182.28,228.3674]
[1747183756280,124.08,182.44,182.29,124.04]
[1747183757385,129.55141602,182.44,182.28,3.5804]
[1747183757589,5.47141602,182.4,182.26,61.92]
[1747183757782,124.22,182.39,182.29,5.4849]
[1747183758294,5.4837,182.34,182.29,5.4849]
[1747183758486,124.22,182.39,182.29,5.4849]
[1747183758792,124.24,182.38,182.26,61.92]
[1747183759090,5.4833,182.35,182.31,5.4842]
[1747183759294,62.3,182.38,182.27,1.8119]
[1747183759590,5.483,182.36,182.27,1.8119]
[1747183759893,62.3,182.38,182.27,1.8119]
[1747183760094,5.483,182.36,182.27,1.8119]
[1747183760288,5.483,182.36,182.32,5.484]
[1747183760490,62.3,182.38,182.32,5.484]
[1747183760686,5.483,182.36,182.27,1.8119]
[1747183761089,5.4814,182.41,182.27,1.8119]
[1747183761392,61.9,182.44,182.3,5.47141602]
[1747183761588,5.4804,182.44,182.31,127.7555]
[1747183761789,61.9,182.48,182.31,127.7555]
[1747183761985,63.52,182.47,182.31,350.7555]
[1747183762191,125.42,182.48,182.34,5.47141602]
[1747183762392,474.06,182.55,182.38,5.47141602]
[1747183762591,5.4788,182.5,182.39,127.3956]
[1747183762785,125.5,182.54,182.39,127.3956]
[1747183762991,61.9,182.54,182.39,127.3956]
[1747183763192,5.4791,182.49,182.39,127.3956]
[1747183764594,5.4791,182.49,182.43,5.4804]
[1747183765092,63.62,182.53,182.41,5.481]
[1747183765298,61.9,182.52,182.39,1.8956]
[1747183765491,61.9,182.52,182.38,125.72]
[1747183765690,5.481,182.43,182.37,5.4823]
[1747183765894,125.7,182.45,182.35,1.8602]
[1747183766196,61.88,182.44,182.35,1.8602]
[1747183767196,5.4807,182.43,182.35,1.8602]
[1747183767699,5.4807,182.43,182.38,5.4819]
[1747183768197,125.64,182.49,182.43,5.4807]
[1747183769000,474.06,182.55,182.43,5.4807]
[1747183769299,125.56,182.54,182.43,5.4807]
[1747183769496,5.4794,182.48,182.44,5.4803]
[1747183769899,125.5,182.49,182.4,125.48]
[1747183770097,130.9583,182.51,182.47,5.4795]
[1747183770398,125.48,182.51,182.41,3.563]
[1747183770600,125.48,182.51,182.43,5.4805]
[1747183770801,125.48,182.51,182.41,3.563]
[1747183771097,125.48,182.51,182.42,5.4807]
[1747183771296,125.48,182.51,182.4,125.48]
[1747183771504,125.48,182.51,182.36,65.4419]
[1747183771798,5.47141602,182.49,182.38,5.4822]
[1747183772302,5.4812,182.42,182.38,5.4822]
[1747183772798,5.4804,182.44,182.36,3.5619]
[1747183773002,127.04,182.44,182.36,3.5619]
[1747183773501,5.481,182.42,182.38,5.4819]
[1747183773703,127.04,182.44,182.36,3.5619]
[1747183773900,5.47141602,182.53,182.36,3.5619]
[1747183774097,64.49586202,182.52,182.37,63.54]
[1747183774298,64.49586202,182.52,182.38,5.47141602]
[1747183774299,127.0,182.51,182.38,5.47141602]
[1747183774799,5.4789,182.5,182.46,5.4797]
[1747183775101,5.4789,182.5,182.38,228.47141602]
[1747183775798,5.4789,182.5,182.46,5.4795]
[1747183776294,5.479,182.49,182.46,5.4795]
[1747183777902,5.4787,182.5,182.47,5.4794]
[1747183778204,5.4787,182.5,182.41,63.38]
[1747183778399,5.4787,182.5,182.46,5.4796]
[1747183778600,5.4789,182.49,182.46,5.4796]
[1747183779302,5.4787,182.5,182.47,5.4794]
[1747183780107,5.4787,182.5,182.46,5.4797]
[1747183780604,5.4789,182.49,182.46,5.4797]
[1747183781101,126.84,182.52,182.44,5.4802]
[1747183781301,126.84,182.52,182.38,223.0]
[1747183781502,132.31141602,182.52,182.37,126.54]
[1747183781695,5.48,182.46,182.37,126.54]
[1747183781895,126.54,182.46,182.37,126.54]
[1747183782405,5.47141602,182.52,182.37,126.54]
[1747183782608,126.52,182.51,182.37,126.54]
[1747183783104,126.52,182.51,182.44,5.4801]
[1747183783404,126.52,182.51,182.37,126.54]
[1747183783602,5.4797,182.47,182.37,126.54]
[1747183783795,126.52,182.51,182.37,126.54]
[1747183784203,5.48,182.46,182.42,5.4808]
[1747183784399,126.52,182.51,182.37,126.54]
[1747183784804,5.4794,182.48,182.44,5.4802]
[1747183785006,5.4794,182.48,182.37,126.54]
[1747183785812,5.4794,182.48,182.44,5.4802]
[1747183786106,126.52,182.51,182.44,5.4802]
[1747183786408,126.52,182.51,182.42,5.4808]
[1747183786604,5.4797,182.47,182.37,126.54]
[1747183786801,5.4797,182.47,182.43,5.4804]
[1747183787711,5.4798,182.46,182.43,5.4804]
[1747183789007,126.52,182.51,182.37,63.54]
[1747183789212,474.06,182.55,182.37,126.78]
[1747183789412,127.71717092,182.54,182.37,126.78]
[1747183789715,5.4781,182.52,182.48,5.4791]
[1747183790211,126.76,182.54,182.48,5.4791]
[1747183790507,126.76,182.54,182.49,5.4789]
[1747183790712,6.4115253,182.53,182.29,51.0574918]
[1747183791014,5.45471941,182.49,182.37,5.4823]
[1747183791308,127.63680589,182.48,182.37,5.4823]
[1747183791517,126.68,182.48,182.37,5.4823]
[1747183791715,5.481,182.42,182.36,5.4827]
[1747183791915,68.621,182.42,182.34,63.52]
[1747183792316,68.621,182.42,182.36,5.4827]
[1747183792813,5.4813,182.41,182.36,5.4827]
[1747183793810,5.4816,182.4,182.36,5.4827]
[1747183794716,5.4819,182.39,182.36,5.4827]
[1747183794912,63.14,182.42,182.34,63.52]
[1747183795118,63.14,182.42,182.3,63.52]
[1747183795318,5.46139462,182.4,182.27,5.4854]
[1747183795517,63.14,182.42,182.26,67.1198]
[1747183795813,5.4832,182.35,182.26,67.1198]
[1747183796116,62.9,182.37,182.26,67.1198]
[1747183796415,5.4836,182.34,182.3,5.4843]
[1747183797217,5.4832,182.35,182.31,5.4843]
[1747183797418,5.4832,182.35,182.26,129.9598]
[1747183798218,5.4827,182.37,182.26,129.9598]
[1747183798420,68.2027,182.37,182.26,129.9598]
[1747183798622,62.72,182.37,182.26,129.9598]
[1747183799616,62.72,182.37,182.26,352.9598]
[1747183800018,62.72,182.37,182.34,5.4833]
[1747183800217,63.54,182.41,182.31,63.54]
[1747183800416,126.12,182.41,182.32,1.7678]
[1747183800917,5.4817,182.4,182.32,1.7678]
[1747183801323,5.4817,182.4,182.37,5.4824]
[1747183801818,5.482,182.39,182.35,5.483]
[1747183802019,5.482,182.39,182.32,1.7678]
[1747183802220,126.12,182.41,182.32,1.7678]
[1747183802619,5.4816,182.4,182.36,5.4825]
[1747183803021,126.12,182.41,182.32,1.7678]
[1747183803925,131.6015,182.41,182.37,5.4823]
[1747183804220,5.46139462,182.51,182.32,1.7678]
[1747183804422,125.12,182.5,182.32,224.7678]
[1747183804813,473.84,182.53,182.32,224.7678]
[1747183804814,473.84,182.53,182.35,5.46139462]
[1747183805019,5.4794,182.48,182.44,5.4804]
[1747183805611,125.08,182.52,182.45,5.48]
[1747183806322,5.4792,182.48,182.44,5.4803]
[1747183806524,125.08,182.52,182.36,351.732]
[1747183806720,125.08,182.52,182.4,5.4815]
[1747183807018,5.46139462,182.51,182.36,351.732]
[1747183807420,5.46139462,182.51,182.39,5.4819]
[1747183807621,473.84,182.53,182.36,351.732]
[1747183807923,125.04,182.52,182.36,351.732]
[1747183808120,125.0,182.51,182.36,351.732]
[1747183808315,124.98,182.5,182.36,351.732]
[1747183808527,5.4804,182.44,182.4,5.4814]
[1747183808722,5.4804,182.44,182.36,128.732]
[1747183809533,124.98,182.49,182.36,66.172]
[1747183809715,124.98,182.49,182.36,128.552]
[1747183809919,124.98,182.49,182.38,5.4819]
[1747183810120,124.98,182.49,182.36,128.552]
[1747183810517,5.4789,182.49,182.36,128.552]
[1747183810721,67.16,182.57,182.39,5.46139462]
[1747183810927,67.16,182.57,182.43,5.46139462]
[1747183811226,5.4765,182.57,182.45,5.46139462]
[1747183811427,5.4765,182.57,182.45,228.46139462]
[1747183811925,5.4769,182.56,182.45,228.46139462]
[1747183812430,68.12,182.58,182.45,228.46139462]
[1747183812924,68.12,182.58,182.54,5.4774]
[1747183813828,67.16,182.61,182.54,5.4774]
[1747183814028,5.4763,182.58,182.54,5.4774]
[1747183814230,68.54,182.6,182.53,5.4777]
[1747183814625,68.54,182.6,182.5,1.7671]
[1747183814828,68.54,182.6,182.54,5.4772]
[1747183815029,5.4761,182.59,182.54,5.4772]
[1747183815227,68.54,182.6,182.54,5.4772]
[1747183815831,5.4759,182.59,182.54,5.4772]
[1747183816133,68.54,182.6,182.53,5.4776]
[1747183816335,69.22,182.59,182.45,223.0]
[1747183816526,5.46139462,182.57,182.45,67.14]
[1747183816734,67.14,182.56,182.46,5.4797]
[1747183816936,5.4782,182.52,182.45,67.14]
[1747183817130,69.32,182.53,182.45,67.14]
[1747183817831,69.32,182.53,182.48,5.479]
[1747183818134,69.32,182.53,182.45,67.14]
[1747183818337,69.32,182.53,182.44,3.4808]
[1747183818936,5.4785,182.51,182.46,5.4795]
[1747183819635,69.32,182.53,182.44,3.4808]
[1747183820037,69.32,182.53,182.49,5.4787]
[1747183820231,5.46139462,182.61,182.44,3.4808]
[1747183820428,137.4800764,182.6,182.45,69.34]
[1747183820630,137.4800764,182.6,182.51,5.4781]
[1747183820836,136.52,182.6,182.51,5.4781]
[1747183821026,136.44,182.59,182.51,5.4781]
[1747183822340,5.4773,182.55,182.51,5.4781]
[1747183822637,136.44,182.59,182.52,5.4779]
[1747183823236,136.44,182.59,182.46,67.12]
[1747183823736,67.12,182.59,182.46,67.12]
[1747183824540,5.4762,182.58,182.55,5.477]
[1747183824839,542.74,182.62,182.51,67.12]
[1747183825040,542.74,182.62,182.52,3.6377]
[1747183825539,5.4764,182.58,182.54,5.4772]
[1747183825743,473.82,182.62,182.52,3.6377]
[1747183825933,67.12,182.63,182.52,5.5157]
[1747183827044,5.4755,182.61,182.52,5.5157]
[1747183827943,5.4755,182.61,182.57,5.4763]
[1747183828242,67.12,182.63,182.52,5.5157]
[1747183828642,67.12,182.63,182.58,5.476]
[1747183828844,5.475,182.62,182.58,5.476]
[1747183829438,67.12,182.63,182.52,5.5157]
[1747183829634,67.12,182.63,182.52,3.6377]
[1747183830043,5.4762,182.58,182.55,5.477]
[1747183830340,69.16,182.59,182.51,67.1]
[1747183830535,67.1,182.58,182.47,72.6798]
[1747183831844,67.1,182.58,182.5,5.4785]
[1747183832043,67.1,182.58,182.47,72.6798]
[1747183832546,5.4772,182.55,182.51,5.4781]
[1747183833045,5.4772,182.55,182.47,72.6798]
[1747183833235,5.4769,182.56,182.47,72.6798]
[1747183833443,67.1,182.58,182.47,72.6798]
[1747183833746,5.46139462,182.64,182.47,72.6798]
[1747183833950,137.32069193,182.63,182.47,72.6798]
[1747183834241,137.32069193,182.63,182.54,5.4772]
[1747183834440,0.96069193,182.62,182.48,69.22]
[1747183834747,69.22,182.61,182.56,5.4766]
[1747183835247,5.4758,182.6,182.56,5.4766]
[1747183835750,69.22,182.61,182.57,5.4764]
[1747183835951,74.6954,182.61,182.48,292.22]
[1747183836343,5.4759,182.59,182.48,292.22]
[1747183836744,69.08,182.61,182.48,292.22]
[1747183837452,5.4757,182.6,182.48,292.22]
[1747183838051,5.4757,182.6,182.56,5.4766]
[1747183838849,5.476,182.59,182.56,5.4766]
[1747183839153,5.4757,182.6,182.56,5.4766]
[1747183839553,27.3915,182.77,182.53,68.82]
[1747183839755,68.9841,182.71,182.53,68.82]
[1747183840253,0.96094513,182.7,182.58,5.4761]
[1747183840548,5.46139462,182.69,182.58,5.4761]
[1747183840748,5.46139462,182.65,182.53,68.82]
[1747183840950,137.42,182.64,182.52,67.1]
[1747183841154,5.4774,182.54,182.5,5.4784]
[1747183842553,68.84,182.57,182.47,74.2998]
[1747183842851,68.72,182.59,182.47,74.2998]
[1747183843049,69.2,182.62,182.47,74.2998]
[1747183843248,69.2,182.62,182.47,297.2998]
[1747183843555,5.4758,182.6,182.56,5.4766]
[1747183844351,5.4755,182.61,182.57,5.4763]
[1747183844553,69.2,182.62,182.47,297.2998]
[1747183844954,5.4758,182.6,182.56,5.4767]
[1747183846960,5.4759,182.59,182.56,5.4767]
[1747183847160,69.2,182.62,182.47,297.2998]
[1747183847452,69.2,182.62,182.47,5.5798]
[1747183847657,69.2,182.62,182.48,68.72]
[1747183847855,5.4767,182.57,182.53,5.4775]
[1747183848055,69.2,182.62,182.53,5.4775]
[1747183848354,5.4767,182.57,182.53,5.4775]
[1747183848555,5.4767,182.57,182.54,5.4773]
[1747183851062,1.8841,182.63,182.48,68.72]
[1747183851257,137.46,182.62,182.48,68.72]
[1747183852358,5.476,182.59,182.55,5.4771]
[1747183852556,137.46,182.62,182.48,68.72]
[1747183852756,137.46,182.62,182.48,291.72]
[1747183853058,5.4758,182.6,182.57,5.4765]
[1747183853253,68.72,182.62,182.48,291.72]
[1747183853254,137.26,182.62,182.48,291.72]
[1747183853651,68.72,182.62,182.48,291.72]
[1747183853857,71.0,182.61,182.48,291.72]
[1747183854759,5.477,182.56,182.48,291.72]
[1747183854959,5.477,182.56,182.48,68.72]
[1747183856049,5.477,182.56,182.52,5.4779]
[1747183859167,5.4771,182.55,182.52,5.4779]
[1747183859462,5.4771,182.55,182.5,5.4786]
[1747183859664,71.0,182.61,182.5,5.4786]
[1747183859862,71.0,182.61,182.48,68.72]
[1747183861166,68.72,182.62,182.48,68.72]
[1747183861360,68.72,182.62,182.48,291.72]
[1747183861559,5.4756,182.6,182.56,5.4765]
[1747183861963,68.72,182.62,182.53,68.72]
[1747183862165,5.4761,182.59,182.55,5.477]
[1747183862565,5.4761,182.59,182.53,68.72]
[1747183862956,5.4762,182.58,182.53,68.72]
[1747183863165,68.72,182.62,182.52,5.4778]
[1747183863668,5.477,182.56,182.52,5.4778]
[1747183864065,70.1,182.58,182.49,74.1988]
[1747183864262,5.4779,182.53,182.49,5.4788]
[1747183864470,68.72,182.57,182.47,5.5798]
[1747183864765,5.4785,182.51,182.47,11.0591]
[1747183865068,68.72,182.57,182.47,5.5798]
[1747183865266,5.4786,182.51,182.47,5.5798]
[1747183865463,68.72,182.57,182.47,5.5798]
[1747183865764,5.46139462,182.55,182.41,68.72]
[1747183866367,5.4791,182.49,182.45,5.4798]
[1747183866864,75.5383,182.51,182.47,5.4793]
[1747183867567,5.4783,182.51,182.41,68.72]
[1747183868158,5.4781,182.52,182.41,68.72]
[1747183868368,138.62,182.55,182.41,74.18139462]
[1747183868765,5.4779,182.53,182.49,5.4787]
[1747183869069,138.62,182.55,182.49,5.4787]
[1747183869768,138.62,182.55,182.48,5.4791]
[1747183869967,5.4783,182.51,182.48,5.4791]
[1747183870463,5.4783,182.51,182.47,5.4794]
[1747183871262,5.4781,182.52,182.46,68.72]
[1747183871767,5.4782,182.52,182.46,68.72]
[1747183871966,138.62,182.55,182.46,68.72]
[1747183872174,138.62,182.55,182.48,5.4791]
[1747183872467,5.4784,182.51,182.48,5.4791]
[1747183873167,5.4784,182.51,182.47,5.4794]
[1747183873366,16.45,182.72,182.46,68.72]
[1747183873570,5.46139462,182.65,182.47,1.8171]
[1747183873769,140.6364,182.64,182.5,5.4786]
[1747183873971,5.4776,182.54,182.47,1.8171]
[1747183874272,69.24,182.57,182.5,5.4783]
[1747183874467,69.24,182.57,182.47,1.8171]
[1747183874768,69.52,182.6,182.55,5.4768]
[1747183874965,74.9957,182.6,182.47,1.8171]
[1747183875171,74.9957,182.6,182.51,69.52]
[1747183875472,69.52,182.6,182.51,69.52]
[1747183876068,5.4751,182.62,182.51,138.86]
[1747183876472,69.52,182.64,182.51,138.86]
[1747183876674,69.52,182.68,182.52,5.46139462]
[1747183876870,69.52,182.68,182.63,5.4744]
[1747183877177,138.94,182.68,182.57,69.52]
[1747183877374,138.94,182.68,182.61,5.4751]
[1747183877573,138.94,182.68,182.57,71.3373]
[1747183877775,5.474,182.66,182.57,71.3373]
[1747183878171,0.95295471,182.8,182.57,71.3373]
[1747183878368,5.473,182.69,182.57,71.3373]
[1747183878573,5.473,182.69,182.58,3.6663]
[1747183878871,69.3,182.72,182.58,3.6663]
[1747183879475,69.3,182.72,182.62,5.4747]
[1747183880876,69.3,182.72,182.61,5.4752]
[1747183881175,0.96081285,182.71,182.58,3.6663]
[1747183881577,69.3,182.72,182.58,3.6663]
[1747183882078,5.4737,182.67,182.63,5.4746]
[1747183883184,5.4734,182.68,182.58,3.6663]
[1747183883482,69.3,182.72,182.58,3.6663]
[1747183883682,5.473,182.69,182.64,5.4741]
[1747183883877,69.52,182.73,182.61,68.88]
[1747183884082,68.88,182.72,182.61,68.88]
[1747183884282,5.4728,182.7,182.65,5.4738]
[1747183884783,5.4728,182.7,182.66,5.4737]
[1747183885180,5.4729,182.69,182.61,68.88]
[1747183885483,68.9,182.72,182.61,68.88]
[1747183885987,68.9,182.72,182.62,5.4749]
[1747183886284,5.46139462,182.71,182.57,294.3373]
[1747183886483,3.5708,182.7,182.57,294.3373]
[1747183886681,5.4755,182.61,182.57,292.52]
[1747183886876,5.4755,182.61,182.54,68.92]
[1747183887078,68.88,182.64,182.54,68.92]
[1747183887276,68.88,182.68,182.54,68.92]
[1747183888178,1.8577,182.74,182.57,5.46139462]
[1747183888375,5.473,182.69,182.58,69.48]
[1747183888577,139.39945159,182.73,182.64,5.4743]
[1747183888884,138.44,182.73,182.59,70.6847]
[1747183889083,69.48,182.73,182.6,3.5338]
[1747183889284,68.88,182.72,182.6,3.5338]
[1747183890187,5.4728,182.7,182.6,3.5338]
[1747183890382,5.4728,182.7,182.66,5.4736]
[1747183890783,69.48,182.73,182.63,69.48]
[1747183890983,69.48,182.73,182.63,74.9544]
[1747183891588,5.4737,182.67,182.63,74.9544]
[1747183891786,5.4737,182.67,182.64,5.4744]
[1747183891987,69.48,182.73,182.64,5.4744]
[1747183892183,5.4733,182.68,182.64,5.4744]
[1747183892391,68.6,182.72,182.66,5.4738]
[1747183893390,5.4731,182.69,182.65,5.474]
[1747183894389,5.4731,182.69,182.66,5.4738]
[1747183894586,74.9519,182.73,182.63,69.48]
[1747183894791,69.48,182.73,182.63,69.48]
[1747183895989,69.48,182.73,182.66,5.4737]
[1747183896291,69.48,182.73,182.63,69.48]
[1747183896691,5.4722,182.72,182.63,69.48]
[1747183897291,5.4714,182.74,182.63,137.6]
[1747183897993,5.4717,182.73,182.69,5.4727]
[1747183898193,1.759,182.76,182.63,137.6]
[1747183898489,5.4716,182.74,182.7,5.4724]
[1747183898700,1.759,182.76,182.63,137.6]
[1747183899396,5.472,182.73,182.68,5.4731]
[1747183900204,5.472,182.72,182.68,5.4731]
[1747183900791,5.4724,182.71,182.68,5.4731]
[1747183901499,1.759,182.76,182.63,137.6]
[1747183902296,5.4722,182.72,182.63,137.6]
[1747183902997,5.4722,182.72,182.69,5.4728]
[1747183905788,69.48,182.77,182.65,3.39771273]
[1747183905997,67.52,182.79,182.68,71.15771273]
[1747183906195,67.52,182.8,182.69,69.4038]
[1747183906397,67.76,182.81,182.69,69.4038]
[1747183906699,135.26,182.81,182.69,69.4038]
[1747183906997,135.26,182.81,182.72,5.4717]
[1747183907603,135.26,182.81,182.73,5.4716]
[1747183907901,135.26,182.81,182.69,69.4038]
[1747183908110,3.39771273,182.8,182.69,69.4038]
[1747183908297,4.35834064,182.8,182.69,69.4038]
[1747183908497,0.96062791,182.8,182.69,69.4038]
[1747183908697,135.26,182.81,182.69,69.4038]
[1747183908906,135.26,182.81,182.69,72.80151273]
[1747183909303,135.26,182.81,182.69,71.1981]
[1747183910101,5.4707,182.77,182.73,5.4715]
[1747183910797,5.4708,182.76,182.73,5.4715]
[1747183911811,135.0,182.81,182.73,5.4715]
[1747183911812,5.4706,182.77,182.73,5.4715]
[1747183913013,5.4708,182.76,182.73,5.4715]
[1747183913511,135.0,182.81,182.72,5.4719]
[1747183914211,5.4714,182.74,182.72,5.4719]
[1747183914510,135.0,182.81,182.72,5.4719]
[1747183915515,5.4712,182.75,182.72,5.4719]
[1747183915715,135.0,182.81,182.68,67.76]
[1747183916109,5.4722,182.72,182.68,67.76]
[1747183916913,5.4722,182.72,182.69,5.4728]
[1747183917514,5.4722,182.72,182.68,73.2331]
[1747183918813,5.4722,182.72,182.69,5.4728]
[1747183919118,5.4723,182.71,182.68,67.76]
[1747183919318,135.0,182.81,182.68,67.76]
[1747183919611,5.4725,182.71,182.68,67.76]
[1747183920618,5.4726,182.7,182.68,67.76]
[1747183920820,134.4,182.76,182.64,67.74]
[1747183921018,134.4,182.76,182.64,69.5302]
[1747183921219,134.4,182.76,182.68,5.4729]
[1747183922119,5.4722,182.72,182.68,5.4729]
[1747183922314,67.74,182.76,182.64,69.5302]
[1747183922620,66.5,182.79,182.64,69.5302]
[1747183922819,66.5,182.79,182.64,292.5302]
[1747183923017,5.4713,182.75,182.65,5.43385917]
[1747183923518,67.76,182.8,182.69,5.43385917]
[1747183923718,67.76,182.8,182.7,134.22]
[1747183923914,5.4703,182.78,182.74,5.4712]
[1747183924319,1.87,182.82,182.71,1.8092]
[1747183924520,5.4695,182.81,182.72,3.5659]
[1747183925214,5.4695,182.81,182.77,5.4703]
[1747183925413,5.4696,182.8,182.77,5.4703]
[1747183925613,607.38,182.84,182.77,5.4703]
[1747183925919,540.92,182.84,182.77,5.4703]
[1747183926119,607.24,182.84,182.77,5.4703]
[1747183926524,5.4695,182.81,182.77,5.4703]
[1747183927123,5.469,182.82,182.78,5.4699]
[1747183927315,1.8632,182.88,182.75,67.74]
[1747183927519,69.6032,182.88,182.75,133.92]
[1747183927719,135.7832,182.88,182.75,133.92]
[1747183928020,5.4683,182.85,182.75,133.92]
[1747183928221,69.6032,182.88,182.75,133.92]
[1747183928620,5.4679,182.86,182.75,133.92]
[1747183929028,69.6032,182.88,182.75,133.92]
[1747183929220,5.4681,182.85,182.75,133.92]
[1747183929621,5.4685,182.84,182.8,5.4694]
[1747183930227,5.4685,182.84,182.81,5.4693]
[1747183933032,69.6032,182.88,182.77,3.39327996]
[1747183933225,69.6032,182.88,182.75,133.92]
[1747183934128,5.4696,182.8,182.77,5.4703]
[1747183934534,69.6032,182.88,182.75,133.92]
[1747183935427,5.4698,182.8,182.76,5.4707]
[1747183935629,65.38,182.84,182.75,133.92]
[1747183935832,65.38,182.84,182.73,65.76]
[1747183937229,5.4704,182.78,182.74,5.4712]
[1747183937828,5.471,182.76,182.73,65.76]
[1747183938035,65.52,182.79,182.68,65.76]
[1747183938230,65.52,182.79,182.69,3.39327996]
[1747183939443,5.471,182.76,182.72,5.4719]
[1747183939648,65.52,182.79,182.68,65.76]
[1747183940136,65.52,182.79,182.69,5.4727]
[1747183940335,65.52,182.79,182.68,65.76]
[1747183940732,3.39327996,182.78,182.68,65.76]
[1747183940934,65.76,182.77,182.68,65.76]
[1747183941140,5.4717,182.74,182.7,5.4725]
[1747183941538,65.76,182.77,182.68,65.76]
[1747183941738,65.76,182.77,182.68,71.2331]
[1747183942336,5.4723,182.72,182.68,71.2331]
[1747183943035,5.27267996,182.81,182.68,65.76]
[1747183943236,131.72,182.8,182.68,65.76]
[1747183943437,5.4717,182.74,182.7,5.4726]
[1747183944433,5.4718,182.73,182.7,5.4726]
[1747183944839,131.66,182.78,182.68,65.76]
[1747183945040,65.76,182.78,182.68,65.76]
[1747183945741,5.4717,182.74,182.68,65.76]
[1747183946541,5.4721,182.72,182.68,65.76]
[1747183947040,5.4718,182.73,182.68,65.76]
[1747183947240,1.7737,182.77,182.68,65.76]